[Event "SixDays IM March 2024"]
[Site "Budapest"]
[Date "2024.04.02"]
[Round "6.3"]
[White "Radzimski, Antoni"]
[Black "Mouhamad, Joachim"]
[Result "1/2-1/2"]
[ECO "D30"]
[WhiteElo "2197"]
[BlackElo "2278"]
[Annotator "RC"]
[PlyCount "55"]
[EventDate "2024.03.26"]
[EventType "tourn"]
[EventCountry "HUN"]
[SourceTitle "playchess.com"]
[Source "ChessBase"]
[SourceQuality "1"]
[TimeControl "5400+30"]

1. d4 {[%emt 0:00:03]} d5 {[%emt 0:00:10]} 2. c4 {[%emt 0:00:43]} e6 {[%emt 0:00:06]} 3. cxd5 {[%emt 0:00:17]} exd5 {[%emt 0:00:12]} 4. Nc3 {[%emt 0:00:06]} h6 {[%emt 0:01:23]} 5. Bf4 {[%emt 0:01:34]} Nf6 {[%emt 0:00:18]} 6. e3 {[%emt 0:00:12]} Bd6 {[%emt 0:00:26]} 7. Bxd6 {[%emt 0:01:39]} Qxd6 {[%emt 0:00:10]} 8. Bd3 {[%emt 0:00:36]} O-O {[%emt 0:01:36]} 9. Nf3 {[%emt 0:02:23]} c6 {[%emt 0:00:36]} 10. O-O {[%emt 0:01:14]} Nbd7 {[%emt 0:03:21]} 11. Qc2 {[%emt 0:05:01]} Re8 {[%emt 0:02:27]} 12. Rfe1 {[%emt 0:02:34]} Qe7 {[%emt 0:14:29]} 13. Rac1 {[%emt 0:05:08]} Ne4 {[%emt 0:00:49]} 14. Nd2 {[%emt 0:02:59]} Ndf6 {[%emt 0:10:09]} 15. f3 {[%emt 0:04:16]} Nxd2 {[%emt 0:00:31]} 16. Qxd2 {[%emt 0:00:20]} Be6 {[%emt 0:01:32]} 17. Rcd1 {[%emt 0:10:14]} Rad8 {[%emt 0:01:22]} 18. Bc2 {[%emt 0:01:57]} c5 {[%emt 0:19:10]} 19. dxc5 {[%emt 0:01:16]} Qxc5 {[%emt 0:00:02]} 20. Qd4 {[%emt 0:00:20]} Qa5 {[%emt 0:02:13]} 21. Ba4 {[%emt 0:06:08]} Bd7 {[%emt 0:06:50]} 22. Bb3 {[%emt 0:01:34]} Bc6 {[%emt 0:01:33]} 23. Re2 {[%emt 0:06:06]} Rd7 {[%emt 0:01:02]} 24. Red2 {[%emt 0:02:48]} Rde7 {[%emt 0:01:09]} 25. Nxd5 {[%emt 0:05:14]} Nxd5 {[%emt 0:03:35]} 26. Bxd5 {[%emt 0:00:11]} Bxd5 {[%emt 0:05:22]} 27. Qxd5 {[%emt 0:00:06]} Qxd5 {[%emt 0:00:30]} 28. Rxd5 {[%emt 0:00:06]} 1/2-1/2

[Event "SixDays IM March 2024"]
[Site "Budapest"]
[Date "2024.04.02"]
[Round "6.4"]
[White "Advaitt Srikant Koduri"]
[Black "Toth-Goczo, Melinda"]
[Result "0-1"]
[ECO "D23"]
[WhiteElo "2125"]
[BlackElo "2189"]
[Annotator "RC"]
[PlyCount "158"]
[EventDate "2024.03.26"]
[EventType "tourn"]
[EventCountry "HUN"]
[SourceTitle "playchess.com"]
[Source "ChessBase"]
[SourceQuality "1"]
[TimeControl "5400+30"]

1. Nf3 {[%emt 0:00:06]} Nf6 {[%emt 0:04:46]} 2. d4 {[%emt 0:00:29]} d5 {[%emt 0:00:23]} 3. c4 {[%emt 0:00:48]} dxc4 {[%emt 0:00:14]} 4. Qa4+ {[%emt 0:00:09]} c6 {[%emt 0:11:57]} 5. Qxc4 {[%emt 0:00:40]} Bf5 {[%emt 0:03:19]} 6. Nc3 {[%emt 0:07:19]} b5 {[%emt 0:09:19]} 7. Qb3 {[%emt 0:02:11]} a5 {[%emt 0:02:28]} 8. g3 {[%emt 0:10:51]} a4 {[%emt 0:09:23]} 9. Qd1 {[%emt 0:01:49]} e6 {[%emt 0:04:56]} 10. Bg2 {[%emt 0:08:46]} Qa5 {[%emt 0:01:09]} 11. O-O {[%emt 0:05:14]} Bb4 {[%emt 0:16:08]} 12. Nb1 {[%emt 0:09:37]} O-O {[%emt 0:03:33]} 13. a3 {[%emt 0:01:30]} Be7 {[%emt 0:00:39]} 14. Nc3 {[%emt 0:05:44]} Ne4 {[%emt 0:03:42]} 15. Bd2 {[%emt 0:05:42]} Qb6 {[%emt 0:01:24]} 16. e3 {[%emt 0:03:45]} Nxc3 {[%emt 0:02:01]} 17. Bxc3 {[%emt 0:00:26]} Be4 {[%emt 0:01:52]} 18. Qe2 {[%emt 0:01:50]} Qb7 {[%emt 0:02:59]} 19. Rfd1 {[%emt 0:03:13]} Nd7 {[%emt 0:00:55]} 20. Ne1 {[%emt 0:03:47]} Bxg2 {[%emt 0:00:30]} 21. Nxg2 {[%emt 0:00:07]} Nb6 {[%emt 0:05:14]} 22. Nf4 {[%emt 0:01:22]} Nd5 {[%emt 0:02:59]} 23. Rac1 {[%emt 0:01:51]} Rfc8 {[%emt 0:01:36]} 24. Nd3 {[%emt 0:01:49]} Rd8 {[%emt 0:05:15]} 25. Be1 {[%emt 0:02:23]} Rdc8 {[%emt 0:00:53]} 26. Rc2 {[%emt 0:03:35]} Nb6 {[%emt 0:01:14]} 27. Rdc1 {[%emt 0:03:09]} Nc4 {[%emt 0:00:32]} 28. Rxc4 {[%emt 0:06:46]} bxc4 {[%emt 0:00:03]} 29. Rxc4 {[%emt 0:00:06]} Qb5 {[%emt 0:00:52]} 30. Qc2 {[%emt 0:00:21]} Qb3 {[%emt 0:01:17]} 31. Qxb3 {[%emt 0:02:01]} axb3 {[%emt 0:00:01]} 32. Kf1 {[%emt 0:00:44]} Kf8 {[%emt 0:01:14]} 33. Ke2 {[%emt 0:01:33]} Ke8 {[%emt 0:00:59]} 34. Bc3 {[%emt 0:01:36]} f6 {[%emt 0:00:13]} 35. a4 {[%emt 0:00:43]} Kd7 {[%emt 0:00:24]} 36. Nc5+ {[%emt 0:02:11]} Bxc5 {[%emt 0:00:27]} 37. dxc5 {[%emt 0:00:06]} e5 {[%emt 0:00:46]} 38. f4 {[%emt 0:01:07]} exf4 {[%emt 0:02:10]} 39. gxf4 {[%emt 0:00:40]} Ke6 {[%emt 0:00:15]} 40. a5 {[%emt 0:01:38]} g6 {[%emt 0:01:11]} 41. Re4+ {[%emt 0:01:33]} Kf7 {[%emt 0:00:13]} 42. Kd3 {[%emt 0:00:17]} Re8 {[%emt 0:01:23]} 43. Rb4 {[%emt 0:00:24]} Rad8+ {[%emt 0:00:32]} 44. Bd4 {[%emt 0:00:58]} Ra8 {[%emt 0:00:17]} 45. Bc3 {[%emt 0:00:40]} Rad8+ {[%emt 0:00:10]} 46. Bd4 {[%emt 0:01:05]} Ra8 {[%emt 0:00:17]} 47. Ra4 {[%emt 0:00:37]} Ra6 {[%emt 0:00:35]} 48. Kc4 {[%emt 0:00:18]} Rb8 {[%emt 0:01:01]} 49. Ra1 {[%emt 0:00:26]} Rba8 {[%emt 0:00:37]} 50. Bc3 {[%emt 0:00:13]} Re8 {[%emt 0:00:08]} 51. Bd2 {[%emt 0:00:38]} Rd8 {[%emt 0:00:03]} 52. Bb4 {[%emt 0:00:09]} Re8 {[%emt 0:00:10]} 53. Re1 {[%emt 0:00:34]} g5 {[%emt 0:01:01]} 54. fxg5 {[%emt 0:00:18]} fxg5 {[%emt 0:00:01]} 55. Kxb3 {[%emt 0:00:19]} Re4 {[%emt 0:00:11]} 56. Bc3 {[%emt 0:00:32]} Kg6 {[%emt 0:00:34]} 57. Kc2 {[%emt 0:00:26]} h5 {[%emt 0:00:35]} 58. b4 {[%emt 0:00:13]} g4 {[%emt 0:00:22]} 59. Kd3 {[%emt 0:00:12]} Re6 {[%emt 0:00:23]} 60. e4 {[%emt 0:00:56]} Ra7 {[%emt 0:00:38]} 61. Rf1 {[%emt 0:01:13]} Rd7+ {[%emt 0:01:29]} 62. Ke3 {[%emt 0:00:06]} Rde7 {[%emt 0:00:18]} 63. e5 {[%emt 0:00:20]} Kg5 {[%emt 0:00:07]} 64. Ke4 {[%emt 0:00:19]} Kh4 {[%emt 0:00:36]} 65. Rf5 {[%emt 0:00:40]} Rh7 {[%emt 0:00:06]} 66. Rf2 {[%emt 0:01:40]} Kh3 {[%emt 0:00:09]} 67. Bd2 {[%emt 0:00:18]} h4 {[%emt 0:00:12]} 68. Bf4 {[%emt 0:00:18]} Rf7 {[%emt 0:00:48]} 69. Rd2 {[%emt 0:00:18]} g3 {[%emt 0:00:18]} 70. hxg3 {[%emt 0:00:06]} Kg4 {[%emt 0:00:12]} 71. Rd6 {[%emt 0:00:24]} Rxd6 {[%emt 0:00:40]} 72. cxd6 {[%emt 0:00:07]} h3 {[%emt 0:00:51]} 73. e6 {[%emt 0:00:03]} Rf8 {[%emt 0:00:15]} 74. d7 {[%emt 0:00:30]} h2 {[%emt 0:00:07]} 75. e7 {[%emt 0:00:08]} h1=Q+ {[%emt 0:00:05]} 76. Kd4 {[%emt 0:00:46]} Rxf4+ {[%emt 0:01:23]} 77. gxf4 {[%emt 0:00:06]} Qd5+ {[%emt 0:00:04]} 78. Kc3 {[%emt 0:00:07]} Qxd7 {[%emt 0:00:03]} 79. Kc4 {[%emt 0:00:40]} Qxe7 {[%emt 0:00:08]} 0-1

[Event "SixDays IM March 2024"]
[Site "Budapest"]
[Date "2024.04.02"]
[Round "6.5"]
[White "Demeter, Dorina"]
[Black "Gu, Crystal Jiuzhou"]
[Result "1-0"]
[ECO "D10"]
[WhiteElo "2296"]
[BlackElo "2059"]
[Annotator "RC"]
[PlyCount "103"]
[EventDate "2024.03.26"]
[EventType "tourn"]
[EventCountry "HUN"]
[SourceTitle "playchess.com"]
[Source "ChessBase"]
[SourceQuality "1"]
[TimeControl "5400+30"]

1. d4 {[%emt 0:00:02]} d5 {[%emt 0:02:05]} 2. c4 {[%emt 0:00:10]} c6 {[%emt 0:00:04]} 3. cxd5 {[%emt 0:00:17]} cxd5 {[%emt 0:00:07]} 4. Bf4 {[%emt 0:00:08]} Nc6 {[%emt 0:00:08]} 5. e3 {[%emt 0:00:22]} Bf5 {[%emt 0:02:27]} 6. Nc3 {[%emt 0:01:02]} e6 {[%emt 0:01:34]} 7. Qb3 {[%emt 0:00:38]} Qd7 {[%emt 0:06:02]} 8. Nf3 {[%emt 0:06:09]} Bb4 {[%emt 0:07:08]} 9. Ne5 {[%emt 0:08:30]} Bxc3+ {[%emt 0:03:28]} 10. bxc3 {[%emt 0:00:18]} Qc8 {[%emt 0:03:59]} 11. g4 {[%emt 0:07:53]} Bg6 {[%emt 0:14:54]} 12. Nxg6 {[%emt 0:02:38]} hxg6 {[%emt 0:00:12]} 13. Rb1 {[%emt 0:00:17]} b6 {[%emt 0:15:43]} 14. Bb5 {[%emt 0:03:07]} Nge7 {[%emt 0:07:28]} 15. Bd6 {[%emt 0:02:18]} Qd7 {[%emt 0:02:17]} 16. Qa3 {[%emt 0:04:53]} Rc8 {[%emt 0:08:00]} 17. c4 {[%emt 0:03:15]} dxc4 {[%emt 0:05:55]} 18. Rc1 {[%emt 0:03:40]} a6 {[%emt 0:02:57]} 19. Bxc4 {[%emt 0:30:47]} Na5 {[%emt 0:04:42]} 20. Bxe7 {[%emt 0:00:14]} Nxc4 {[%emt 0:02:14]} 21. Qxa6 {[%emt 0:01:11]} Kxe7 {[%emt 0:02:51]} 22. Rxc4 {[%emt 0:00:05]} Qd5 {[%emt 0:02:20]} 23. Rxc8 {[%emt 0:00:45]} Qxh1+ {[%emt 0:00:12]} 24. Ke2 {[%emt 0:01:31]} Rxc8 {[%emt 0:02:26]} 25. Qxc8 {[%emt 0:00:45]} Qd5 {[%emt 0:00:38]} 26. Qc7+ {[%emt 0:01:08]} Ke8 {[%emt 0:00:16]} 27. Qb8+ {[%emt 0:01:02]} Ke7 {[%emt 0:00:30]} 28. Qa7+ {[%emt 0:00:28]} Ke8 {[%emt 0:00:21]} 29. Qa4+ {[%emt 0:00:12]} Ke7 {[%emt 0:00:26]} 30. Qb4+ {[%emt 0:00:35]} Ke8 {[%emt 0:00:13]} 31. a4 {[%emt 0:00:19]} Qb7 {[%emt 0:01:25]} 32. Qb5+ {[%emt 0:00:14]} Kd8 {[%emt 0:01:27]} 33. a5 {[%emt 0:00:03]} Kc7 {[%emt 0:00:46]} 34. Qxb6+ {[%emt 0:00:13]} Qxb6 {[%emt 0:00:04]} 35. axb6+ {[%emt 0:00:05]} Kxb6 {[%emt 0:00:08]} 36. Kd3 {[%emt 0:00:47]} Kc6 {[%emt 0:00:50]} 37. e4 {[%emt 0:00:38]} g5 {[%emt 0:00:36]} 38. Kc4 {[%emt 0:00:12]} Kd6 {[%emt 0:00:49]} 39. d5 {[%emt 0:00:45]} f6 {[%emt 0:01:06]} 40. f3 {[%emt 0:00:37]} g6 {[%emt 0:00:29]} 41. Kd4 {[%emt 0:00:45]} exd5 {[%emt 0:01:02]} 42. exd5 {[%emt 0:00:04]} f5 {[%emt 0:00:05]} 43. h3 {[%emt 0:00:35]} Kd7 {[%emt 0:00:52]} 44. Ke5 {[%emt 0:00:06]} fxg4 {[%emt 0:00:21]} 45. fxg4 {[%emt 0:00:22]} Ke7 {[%emt 0:00:07]} 46. d6+ {[%emt 0:00:05]} Kd7 {[%emt 0:00:04]} 47. Kd5 {[%emt 0:00:09]} Kd8 {[%emt 0:00:08]} 48. Ke6 {[%emt 0:00:05]} Ke8 {[%emt 0:00:04]} 49. d7+ {[%emt 0:00:12]} Kd8 {[%emt 0:00:04]} 50. Kf6 {[%emt 0:00:06]} Kxd7 {[%emt 0:00:04]} 51. Kxg5 {[%emt 0:00:07]} Ke7 {[%emt 0:00:23]} 52. Kxg6 {[%emt 0:00:04]} 1-0

[Event "SixDays IM March 2024"]
[Site "Budapest"]
[Date "2024.04.03"]
[Round "7.1"]
[White "Gu, Crystal Jiuzhou"]
[Black "Hesham, Abdelrahman"]
[Result "0-1"]
[ECO "C54"]
[WhiteElo "2059"]
[BlackElo "2366"]
[Annotator "RC"]
[PlyCount "102"]
[EventDate "2024.03.26"]
[EventType "tourn"]
[EventCountry "HUN"]
[SourceTitle "playchess.com"]
[Source "ChessBase"]
[SourceQuality "1"]
[TimeControl "5400+30"]

1. e4 {[%emt 0:08:53]} e5 {[%emt 0:00:52]} 2. Nf3 {[%emt 0:00:03]} Nc6 {[%emt 0:00:06]} 3. Bc4 {[%emt 0:00:08]} Bc5 {[%emt 0:00:23]} 4. c3 {[%emt 0:00:07]} Nf6 {[%emt 0:00:17]} 5. d3 {[%emt 0:00:05]} d6 {[%emt 0:00:35]} 6. O-O {[%emt 0:00:40]} a6 {[%emt 0:00:14]} 7. Bb3 {[%emt 0:00:05]} Ba7 {[%emt 0:00:06]} 8. Nbd2 {[%emt 0:01:36]} O-O {[%emt 0:02:20]} 9. h3 {[%emt 0:00:19]} h6 {[%emt 0:00:52]} 10. Re1 {[%emt 0:00:38]} Re8 {[%emt 0:00:08]} 11. Nf1 {[%emt 0:00:14]} Be6 {[%emt 0:00:06]} 12. Bxe6 {[%emt 0:02:55]} Rxe6 {[%emt 0:00:08]} 13. Ng3 {[%emt 0:00:04]} d5 {[%emt 0:03:18]} 14. exd5 {[%emt 0:24:35]} Nxd5 {[%emt 0:16:32]} 15. Nf5 {[%emt 0:10:15]} Qf6 {[%emt 0:05:45]} 16. Ne3 {[%emt 0:02:38]} Rd8 {[%emt 0:01:14]} 17. Nxd5 {[%emt 0:06:04]} Rxd5 {[%emt 0:00:08]} 18. Qe2 {[%emt 0:04:23]} Qg6 {[%emt 0:02:47]} 19. Rd1 {[%emt 0:07:05]} e4 {[%emt 0:16:24]} 20. dxe4 {[%emt 0:05:33]} Qxe4 {[%emt 0:00:19]} 21. Be3 {[%emt 0:07:43]} Rxd1+ {[%emt 0:01:21]} 22. Rxd1 {[%emt 0:00:15]} Bxe3 {[%emt 0:00:07]} 23. fxe3 {[%emt 0:00:48]} Qxe3+ {[%emt 0:00:07]} 24. Qxe3 {[%emt 0:00:05]} Rxe3 {[%emt 0:00:08]} 25. Rd7 {[%emt 0:01:08]} Re7 {[%emt 0:00:09]} 26. Rxe7 {[%emt 0:09:43]} Nxe7 {[%emt 0:02:02]} 27. Ne5 {[%emt 0:00:04]} a5 {[%emt 0:07:50]} 28. Kf2 {[%emt 0:01:24]} f6 {[%emt 0:00:28]} 29. Nd3 {[%emt 0:00:20]} b6 {[%emt 0:00:34]} 30. Ke3 {[%emt 0:01:11]} Kf7 {[%emt 0:00:09]} 31. Ke4 {[%emt 0:00:54]} g5 {[%emt 0:00:42]} 32. g4 {[%emt 0:02:10]} Ke6 {[%emt 0:00:31]} 33. c4 {[%emt 0:01:46]} c5 {[%emt 0:00:58]} 34. b3 {[%emt 0:01:11]} f5+ {[%emt 0:00:24]} 35. gxf5+ {[%emt 0:00:32]} Nxf5 {[%emt 0:00:07]} 36. Nb2 Nd6+ {[%emt 0:06:40]} 37. Kf3 {[%emt 0:01:48]} Kf5 {[%emt 0:03:50]} 38. Na4 {[%emt 0:00:14]} Nc8 {[%emt 0:00:01]} 39. Nc3 {[%emt 0:00:30]} h5 {[%emt 0:00:50]} 40. Nd5 {[%emt 0:00:56]} Ke5 {[%emt 0:00:40]} 41. Ke3 {[%emt 0:01:01]} b5 {[%emt 0:01:20]} 42. Nc3 {[%emt 0:00:47]} bxc4 {[%emt 0:00:23]} 43. bxc4 {[%emt 0:00:02]} Nd6 {[%emt 0:00:07]} 44. Kd3 {[%emt 0:00:22]} Kf4 {[%emt 0:00:59]} 45. Ne2+ {[%emt 0:01:01]} Kf3 {[%emt 0:00:10]} 46. a4 {[%emt 0:00:38]} Nxc4 {[%emt 0:01:38]} 47. Ng1+ {[%emt 0:00:27]} Kf2 {[%emt 0:00:45]} 48. Kxc4 {[%emt 0:00:26]} Kxg1 {[%emt 0:00:06]} 49. Kb5 {[%emt 0:00:28]} c4 {[%emt 0:00:15]} 50. Kxc4 {[%emt 0:00:05]} g4 {[%emt 0:00:04]} 51. hxg4 {[%emt 0:00:16]} hxg4 {[%emt 0:00:04]} 0-1

[Event "SixDays IM March 2024"]
[Site "Budapest"]
[Date "2024.04.03"]
[Round "7.2"]
[White "Toth-Goczo, Melinda"]
[Black "Demeter, Dorina"]
[Result "1/2-1/2"]
[ECO "D31"]
[WhiteElo "2189"]
[BlackElo "2296"]
[Annotator "RC"]
[PlyCount "98"]
[EventDate "2024.03.26"]
[EventType "tourn"]
[EventCountry "HUN"]
[SourceTitle "playchess.com"]
[Source "ChessBase"]
[SourceQuality "1"]
[TimeControl "5400+30"]

1. d4 {[%emt 0:00:03]} d5 {[%emt 0:00:35]} 2. c4 {[%emt 0:00:16]} e6 {[%emt 0:00:04]} 3. Nc3 {[%emt 0:00:17]} h6 {[%emt 0:00:17]} 4. g4 {[%emt 0:17:37]} Bb4 {[%emt 0:14:18]} 5. a3 {[%emt 0:05:24]} Bxc3+ {[%emt 0:00:54]} 6. bxc3 {[%emt 0:00:03]} Nf6 {[%emt 0:00:07]} 7. g5 {[%emt 0:19:40]} Ne4 {[%emt 0:06:50]} 8. gxh6 {[%emt 0:01:28]} Nxf2 {[%emt 0:23:11]} 9. hxg7 {[%emt 0:14:14]} Rg8 {[%emt 0:01:41]} 10. Qc2 {[%emt 0:08:15]} Nxh1 {[%emt 0:12:11]} 11. Qh7 {[%emt 0:00:15]} Rxg7 {[%emt 0:08:51]} 12. Qxg7 {[%emt 0:03:14]} Qh4+ {[%emt 0:00:10]} 13. Kd1 {[%emt 0:04:10]} Nf2+ {[%emt 0:00:26]} 14. Kc2 {[%emt 0:01:25]} Qe4+ {[%emt 0:01:29]} 15. Kd2 {[%emt 0:00:33]} Nc6 {[%emt 0:07:34]} 16. Qg8+ {[%emt 0:04:16]} Ke7 {[%emt 0:00:25]} 17. Qg5+ {[%emt 0:00:44]} Kd7 {[%emt 0:02:38]} 18. Bg2 {[%emt 0:05:13]} Qg4 {[%emt 0:14:47]} 19. Qxg4 {[%emt 0:00:40]} Nxg4 {[%emt 0:00:02]} 20. cxd5 {[%emt 0:00:16]} Na5 {[%emt 0:00:36]} 21. Rb1 {[%emt 0:00:45]} exd5 {[%emt 0:01:53]} 22. Bxd5 {[%emt 0:00:38]} Kd6 {[%emt 0:00:32]} 23. Bxf7 {[%emt 0:01:04]} c6 {[%emt 0:01:51]} 24. e4 {[%emt 0:03:28]} Ke7 {[%emt 0:00:21]} 25. Ba2 {[%emt 0:01:27]} Nxh2 {[%emt 0:00:16]} 26. a4 {[%emt 0:02:15]} Bg4 {[%emt 0:00:23]} 27. Ba3+ {[%emt 0:00:13]} Kd7 {[%emt 0:00:49]} 28. Bb4 {[%emt 0:00:31]} b6 {[%emt 0:00:39]} 29. Bxa5 {[%emt 0:00:24]} Rf8 {[%emt 0:00:15]} 30. Bc4 {[%emt 0:02:02]} bxa5 {[%emt 0:00:13]} 31. Rb7+ {[%emt 0:00:10]} Kc8 {[%emt 0:00:12]} 32. Rxa7 {[%emt 0:02:27]} Rf2+ 33. Ne2 {[%emt 0:00:29]} Nf1+ {[%emt 0:01:52]} 34. Ke1 {[%emt 0:00:24]} Rf3 {[%emt 0:00:30]} 35. Rxa5 {[%emt 0:02:32]} Ne3 {[%emt 0:00:21]} 36. Ba6+ {[%emt 0:00:30]} Kc7 {[%emt 0:00:01]} 37. Rg5 {[%emt 0:00:03]} Kb6 {[%emt 0:01:06]} 38. Bd3 {[%emt 0:00:52]} Rh3 {[%emt 0:00:20]} 39. a5+ {[%emt 0:00:08]} Ka7 {[%emt 0:00:08]} 40. Rg7+ {[%emt 0:00:06]} Ka8 {[%emt 0:00:10]} 41. Kd2 {[%emt 0:00:24]} Nf1+ {[%emt 0:00:35]} 42. Kc2 {[%emt 0:00:23]} Rh2 {[%emt 0:00:27]} 43. Kd1 {[%emt 0:01:26]} Rh1 {[%emt 0:00:51]} 44. Rg8+ {[%emt 0:00:18]} Ka7 {[%emt 0:00:01]} 45. Rg7+ {[%emt 0:00:02]} Ka8 {[%emt 0:00:01]} 46. Rg8+ {[%emt 0:00:03]} Ka7 {[%emt 0:00:09]} 47. Kc2 {[%emt 0:00:36]} Rh2 {[%emt 0:00:15]} 48. Kd1 {[%emt 0:02:03]} Rh1 {[%emt 0:00:03]} 49. Rg7+ {[%emt 0:00:04]} Ka8 1/2-1/2

[Event "SixDays IM March 2024"]
[Site "Budapest"]
[Date "2024.04.03"]
[Round "7.3"]
[White "Mouhamad, Joachim"]
[Black "Advaitt Srikant Koduri"]
[Result "1-0"]
[ECO "B76"]
[WhiteElo "2278"]
[BlackElo "2125"]
[Annotator "RC"]
[PlyCount "103"]
[EventDate "2024.03.26"]
[EventType "tourn"]
[EventCountry "HUN"]
[SourceTitle "playchess.com"]
[Source "ChessBase"]
[SourceQuality "1"]
[TimeControl "5400+30"]

1. e4 {[%emt 0:02:25]} c5 {[%emt 0:00:08]} 2. Nf3 {[%emt 0:00:18]} d6 {[%emt 0:00:07]} 3. d4 {[%emt 0:00:12]} cxd4 {[%emt 0:00:07]} 4. Nxd4 {[%emt 0:00:03]} Nf6 {[%emt 0:00:10]} 5. Nc3 {[%emt 0:00:10]} g6 {[%emt 0:00:06]} 6. Be3 {[%emt 0:00:23]} Bg7 {[%emt 0:00:11]} 7. f3 {[%emt 0:00:07]} O-O {[%emt 0:00:08]} 8. Qd2 {[%emt 0:00:08]} Nc6 {[%emt 0:00:07]} 9. O-O-O {[%emt 0:00:35]} d5 {[%emt 0:01:25]} 10. exd5 {[%emt 0:00:18]} Nxd5 {[%emt 0:00:11]} 11. Nxc6 {[%emt 0:00:08]} bxc6 {[%emt 0:00:06]} 12. Bd4 {[%emt 0:00:10]} Bxd4 {[%emt 0:01:01]} 13. Qxd4 {[%emt 0:00:09]} Qb6 {[%emt 0:00:42]} 14. Na4 {[%emt 0:00:25]} Qc7 {[%emt 0:00:31]} 15. Bc4 {[%emt 0:00:35]} Rd8 {[%emt 0:00:52]} 16. Nc5 {[%emt 0:00:38]} Bf5 {[%emt 0:00:57]} 17. Bb3 {[%emt 0:01:14]} Nf4 {[%emt 0:01:26]} 18. Qf2 {[%emt 0:00:22]} Rxd1+ {[%emt 0:01:07]} 19. Rxd1 {[%emt 0:00:05]} Rd8 {[%emt 0:00:08]} 20. Re1 {[%emt 0:00:22]} h5 {[%emt 0:01:12]} 21. g3 {[%emt 0:00:15]} Nd5 {[%emt 0:00:22]} 22. a3 {[%emt 0:00:16]} Qb6 {[%emt 0:20:35]} 23. Rd1 {[%emt 0:09:52]} Rd6 {[%emt 0:13:06]} 24. Qg1 {[%emt 0:03:16]} Nf6 {[%emt 0:04:55]} 25. Re1 {[%emt 0:01:05]} Nd5 {[%emt 0:11:58]} 26. Bc4 {[%emt 0:05:18]} Qc7 {[%emt 0:04:48]} 27. Bd3 {[%emt 0:02:49]} Bxd3 {[%emt 0:00:48]} 28. Nxd3 {[%emt 0:00:11]} Nb6 {[%emt 0:02:55]} 29. Qc5 {[%emt 0:01:27]} Qd7 {[%emt 0:01:45]} 30. Qe5 {[%emt 0:07:43]} Nd5 {[%emt 0:10:30]} 31. Nc5 {[%emt 0:02:29]} Qc7 {[%emt 0:03:24]} 32. Ne4 {[%emt 0:13:59]} Re6 {[%emt 0:02:33]} 33. Qxc7 {[%emt 0:00:51]} Nxc7 {[%emt 0:00:06]} 34. Rd1 {[%emt 0:12:09]} Nd5 {[%emt 0:06:55]} 35. Kd2 {[%emt 0:06:06]} f5 {[%emt 0:01:20]} 36. Nc5 {[%emt 0:00:57]} Rd6 {[%emt 0:00:57]} 37. Ke2 {[%emt 0:01:01]} Kf7 {[%emt 0:01:28]} 38. Rd4 {[%emt 0:00:24]} Nb6 {[%emt 0:01:40]} 39. Rb4 {[%emt 0:04:12]} Rd5 {[%emt 0:02:10]} 40. Nd3 {[%emt 0:00:38]} Rb5 {[%emt 0:01:39]} 41. f4 {[%emt 0:01:51]} a5 {[%emt 0:01:26]} 42. Rb3 {[%emt 0:09:51]} Kf6 {[%emt 0:03:15]} 43. Rc3 {[%emt 0:00:51]} e6 {[%emt 0:02:10]} 44. Rxc6 {[%emt 0:00:27]} Nd7 {[%emt 0:00:21]} 45. h4 {[%emt 0:01:53]} Nb6 {[%emt 0:00:39]} 46. Kd2 {[%emt 0:05:41]} a4 {[%emt 0:00:25]} 47. Kc1 {[%emt 0:02:07]} Nd7 {[%emt 0:00:36]} 48. Ra6 {[%emt 0:01:19]} Nb6 {[%emt 0:00:18]} 49. Ra7 {[%emt 0:01:15]} Nc4 {[%emt 0:00:26]} 50. Rxa4 {[%emt 0:00:18]} Ne3 {[%emt 0:00:05]} 51. Ra7 {[%emt 0:00:41]} Nf1 {[%emt 0:00:13]} 52. c4 {[%emt 0:00:40]} 1-0

[Event "SixDays IM March 2024"]
[Site "Budapest"]
[Date "2024.04.03"]
[Round "7.4"]
[White "Krizsany, Laszlo"]
[Black "Radzimski, Antoni"]
[Result "1/2-1/2"]
[ECO "E11"]
[WhiteElo "2341"]
[BlackElo "2197"]
[Annotator "RC"]
[PlyCount "102"]
[EventDate "2024.03.26"]
[EventType "tourn"]
[EventCountry "HUN"]
[SourceTitle "playchess.com"]
[Source "ChessBase"]
[SourceQuality "1"]
[TimeControl "5400+30"]

1. d4 {[%emt 0:00:05]} Nf6 {[%emt 0:00:05]} 2. c4 {[%emt 0:00:07]} e6 {[%emt 0:00:03]} 3. Nf3 {[%emt 0:00:11]} Bb4+ {[%emt 0:00:07]} 4. Bd2 {[%emt 0:00:09]} a5 {[%emt 0:00:03]} 5. g3 {[%emt 0:01:23]} d5 {[%emt 0:00:04]} 6. Bg2 {[%emt 0:01:20]} O-O {[%emt 0:00:18]} 7. O-O {[%emt 0:01:19]} dxc4 {[%emt 0:00:04]} 8. Qc2 {[%emt 0:02:35]} Bxd2 {[%emt 0:00:13]} 9. Nbxd2 {[%emt 0:01:10]} b5 {[%emt 0:00:03]} 10. a4 {[%emt 0:03:52]} c6 {[%emt 0:00:06]} 11. b3 {[%emt 0:05:27]} cxb3 {[%emt 0:00:51]} 12. Nxb3 {[%emt 0:00:10]} Ba6 {[%emt 0:00:13]} 13. Rfc1 {[%emt 0:08:17]} bxa4 {[%emt 0:02:56]} 14. Nc5 {[%emt 0:04:14]} Bb5 {[%emt 0:00:42]} 15. Nxa4 {[%emt 0:05:37]} Na6 {[%emt 0:01:51]} 16. Nc3 {[%emt 0:04:13]} Nb4 {[%emt 0:05:58]} 17. Qd2 {[%emt 0:00:27]} Qb6 {[%emt 0:05:48]} 18. e4 {[%emt 0:02:41]} Rfd8 {[%emt 0:08:27]} 19. e5 {[%emt 0:01:45]} Nfd5 {[%emt 0:01:00]} 20. Ne4 {[%emt 0:00:44]} Nd3 {[%emt 0:06:30]} 21. Rcb1 {[%emt 0:02:48]} N5b4 {[%emt 0:01:57]} 22. Nd6 {[%emt 0:04:28]} c5 {[%emt 0:15:17]} 23. Ng5 {[%emt 0:02:29]} Ra7 {[%emt 0:01:11]} 24. Be4 {[%emt 0:01:41]} h6 {[%emt 0:03:12]} 25. Nf3 {[%emt 0:20:09]} c4 {[%emt 0:07:11]} 26. Bxd3 {[%emt 0:02:14]} Rxd6 {[%emt 0:02:40]} 27. exd6 {[%emt 0:00:15]} cxd3 {[%emt 0:00:04]} 28. Qf4 {[%emt 0:05:39]} Ra6 {[%emt 0:14:28]} 29. Ra3 {[%emt 0:08:29]} Qxd6 {[%emt 0:05:24]} 30. Qxd6 {[%emt 0:00:48]} Rxd6 {[%emt 0:00:05]} 31. Rxa5 {[%emt 0:00:13]} Bc6 {[%emt 0:00:11]} 32. Rxb4 {[%emt 0:07:17]} Bxf3 {[%emt 0:00:30]} 33. Ra2 {[%emt 0:00:09]} Rc6 {[%emt 0:05:35]} 34. Rb1 {[%emt 0:00:11]} Rc4 {[%emt 0:01:45]} 35. Rd2 {[%emt 0:00:09]} Rxd4 {[%emt 0:00:12]} 36. Re1 {[%emt 0:00:08]} Be2 {[%emt 0:03:04]} 37. Kg2 {[%emt 0:01:23]} e5 {[%emt 0:01:44]} 38. f3 {[%emt 0:00:15]} Kh7 {[%emt 0:01:14]} 39. Kf2 {[%emt 0:00:34]} f5 {[%emt 0:00:33]} 40. Rexe2 {[%emt 0:01:03]} dxe2 {[%emt 0:00:09]} 41. Rxd4 {[%emt 0:00:18]} exd4 {[%emt 0:00:06]} 42. Kxe2 {[%emt 0:00:06]} Kg6 {[%emt 0:00:32]} 43. Kd3 {[%emt 0:00:05]} Kf6 {[%emt 0:00:30]} 44. Kxd4 {[%emt 0:00:07]} Ke6 {[%emt 0:00:02]} 45. f4 {[%emt 0:03:31]} Kd6 {[%emt 0:00:35]} 46. Kc4 {[%emt 0:00:20]} Kc6 {[%emt 0:00:12]} 47. h3 {[%emt 0:00:45]} h5 {[%emt 0:00:10]} 48. Kd4 {[%emt 0:00:10]} Kd6 {[%emt 0:00:04]} 49. Kc4 {[%emt 0:00:16]} Kc6 {[%emt 0:00:04]} 50. Kd4 {[%emt 0:00:07]} Kd6 {[%emt 0:00:01]} 51. Kc4 {[%emt 0:00:08]} Kc6 {[%emt 0:00:06]} 1/2-1/2